fUSD/lending_fUSD_20260213
["ID","MTS","AMOUNT","RATE_DAILY","PERIOD"]
[405313866,1770981032182,-300.0,0.00011699,2]
[405313867,1770981032192,-249.25,0.000117,2]
[405313868,1770981032202,-500.0,0.000117,2]
[405313869,1770981032212,-500.0,0.000117,2]
[405313870,1770981032222,-500.0,0.000117,2]
[405313871,1770981032231,-400.0,0.000117,4]
[405313872,1770981032241,-700.0,0.000118,4]
[405313873,1770981032251,-900.0,0.000119,4]
[405313874,1770981032260,-25814.2,0.00012344,2]
[405313876,1770981032270,-177.89501431,0.000124,2]
[405313880,1770981032281,-1354.62261328,0.000124,2]
[405313883,1770981032291,-7465.50401033,0.000124,2]
[405313885,1770981032300,-1591.11100679,0.000124,2]
[405313888,1770981032310,-150.0,0.00012448,2]
[405313890,1770981032321,-147909.99896457,0.00012449,2]
[405313892,1770981032503,-196293.29868641,0.00012449,2]
[405313893,1770981032516,-30985.33957695,0.00012449,2]
[405313894,1770981032555,-10996.22876549,0.00012449,2]
[405313895,1770981038000,-2864988.19176408,0.00012449,2]
[405313896,1770981038016,-372.78328,0.00012449,2]
[405313899,1770981039942,-2279.10000001,0.00012449,2]
[405313902,1770981040307,-1193.63899148,0.00012449,2]
[405313903,1770981040318,-620.02739771,0.00012449,2]
[405313904,1770981040329,-244361.3925733,0.00012449,2]
[405313905,1770981040339,-166.66,0.000125,2]
[405313906,1770981040349,-602.52223762,0.00012549,2]
[405313907,1770981040358,-300.0,0.00012593,2]
[405313909,1770981040368,-300.0,0.0001276,2]
[405313911,1770981040378,-250.0,0.0001276,2]
[405313912,1770981040388,-195.0,0.0001276,2]
[405313913,1770981040399,-166.66,0.00012763,2]
[405313914,1770981040410,-420.0,0.00012847,2]
[405313915,1770981040423,-150.99,0.00012869,2]
[405313916,1770981040432,-8114.86,0.00012869,2]
[405313917,1770981040441,-9999.99,0.00012869,2]
[405313918,1770981040452,-166.66,0.00013026,2]
[405313919,1770981040461,-166.66,0.00013289,2]
[405313920,1770981040472,-325.38,0.00013396,2]
[405313921,1770981040483,-273.19517437,0.00013397,2]
[405313922,1770981040492,-1500000.0,0.00013398,2]
[405313923,1770981040502,-2500.0,0.00013497,2]
[405313924,1770981040511,-711.93058668,0.00013498,2]
[405313925,1770981040521,-4854.87299188,0.00013498,2]
[405313926,1770981040530,-602.52223762,0.00013498,2]
[405313927,1770981040539,-9712.88812028,0.00013498,2]
[405313928,1770981040550,-395.74226214,0.00013498,2]
[405313929,1770981040559,-1559.96123183,0.00013498,2]
[405313930,1770981040568,-166.66,0.00013552,2]
[405313931,1770981040580,-500.0,0.00013698,2]
[405313932,1770981040589,-500.0,0.00013698,2]
[405313933,1770981040600,-500.0,0.00013698,2]
[405313934,1770981040609,-500.0,0.00013698,2]
[405313935,1770981040619,-500.0,0.00013698,2]
[405313936,1770981040629,-500.0,0.00013698,2]
[405313937,1770981040638,-500.0,0.00013698,2]
[405313938,1770981040647,-559.38615752,0.00013698,2]
[405313939,1770981040658,-500.0,0.00013698,2]
[405313940,1770981040668,-500.0,0.00013698,2]
[405313941,1770981040678,-500.0,0.00013698,2]
[405313942,1770981040687,-500.0,0.00013698,2]
[405313943,1770981040696,-500.0,0.00013698,2]
[405313944,1770981040705,-500.0,0.00013698,2]
[405313945,1770981040715,-500.0,0.00013698,2]
[405313946,1770981040725,-200.90997361,0.00013698,2]
[405313947,1770981040734,-166.66,0.00013816,2]
[405313948,1770981040743,-160.0,0.00013844,2]
[405313949,1770981040752,-4854.87299183,0.00013987,2]
[405313950,1770981040762,-9712.88812026,0.00013987,2]
[405313951,1770981040771,-150.0,0.00014076,2]
[405313952,1770981040780,-587.0,0.00014107,2]
[405313953,1770981040789,-4854.87299183,0.00014476,2]
[405313954,1770981040799,-9712.88812026,0.00014476,2]
[405313955,1770981040808,-677.08616284,0.00014881,2]
[405313956,1770981040817,-4854.87299183,0.00014965,2]
[405313957,1770981040827,-9712.88812026,0.00014965,2]
[405313958,1770981040836,-169.17,0.00014967,2]
[405313959,1770981040846,-1180.49,0.00014967,2]
[405313960,1770981040855,-500.0,0.00014967,2]
[405313961,1770981040868,-500.0,0.00014967,2]
[405313962,1770981040877,-250.0,0.00015,2]
[405313963,1770981040887,-1000.0,0.00015,2]
[405313964,1770981040896,-500.0,0.00015123,2]
[405313965,1770981040906,-250.0,0.00015327,2]
[405313966,1770981040916,-4854.87299183,0.00015454,2]
[405313967,1770981040926,-9712.88812026,0.00015454,2]
[405313968,1770981040935,-823.0,0.00015491,2]
[405313969,1770981040945,-395.74226213,0.00015699,2]
[405313970,1770981040955,-3240.0,0.00015932,2]
[405313971,1770981040964,-4854.87299183,0.00015944,2]
[405313972,1770981040974,-9712.88812026,0.00015944,2]
[405313973,1770981040983,-42929.0,0.000161,2]
[405313974,1770981040993,-7894.27,0.00016116,2]
[405313975,1770981041002,-282.63121113,0.00016173,2]
[405313976,1770981041011,-160.37994263,0.00016173,2]
[405313977,1770981041021,-500.0,0.00016173,2]
[405313978,1770981041030,-596.02960806,0.00016173,2]
[405313979,1770981041039,-4854.87299183,0.00016433,2]
[405313980,1770981041049,-9712.88812026,0.00016433,2]
[405313981,1770981041058,-199.17,0.00016712,2]
[405313982,1770981041068,-1000.0,0.00016721,2]
[405313983,1770981041078,-1100.0,0.000169,6]
[405313984,1770981041087,-4854.87299183,0.00016922,2]
[405313985,1770981041096,-9712.88812026,0.00016922,2]
[405313986,1770981041106,-300.0,0.00017,2]
[405313987,1770981041115,-5531.0,0.00017,3]
[405313988,1770981041125,-1152.0,0.00017011,2]
[405313989,1770981041134,-575.78,0.00017071,2]
[405313990,1770981041144,-1559.96123182,0.00017184,2]
[405313991,1770981041153,-1500.0,0.00017268,2]
[405313992,1770981041163,-172409.97,0.000173,2]
[405313993,1770981041172,-4854.87299183,0.00017411,2]
[405313994,1770981041181,-9712.88812026,0.00017411,2]
[405313995,1770981041190,-500.0,0.00017699,2]
[405313996,1770981041200,-4315.24371304,0.000177,2]
[405313997,1770981041209,-201.0,0.0001772,2]
[405313998,1770981041218,-500.0,0.00017799,2]
[405313999,1770981041228,-183.82571045,0.00017799,2]
[405314000,1770981041237,-500.0,0.00017799,2]
[405314001,1770981041246,-500.0,0.00017799,2]
[405314002,1770981041255,-500.0,0.00017799,2]
[405314003,1770981041265,-500.0,0.00017799,2]
[405314004,1770981041274,-500.0,0.00017799,2]
[405314005,1770981041284,-615.27,0.00017799,2]
[405314006,1770981041293,-500.0,0.00017799,2]
[405314007,1770981041302,-191.66731724,0.00017799,2]
[405314008,1770981041311,-529.45,0.00017799,2]
[405314009,1770981041321,-500.0,0.00017799,2]
[405314010,1770981041330,-500.0,0.00017799,2]
[405314011,1770981041339,-10000.0,0.000178,2]
[405314012,1770981041348,-2008.47777759,0.00017816,2]
[405314013,1770981041358,-232.0,0.00017888,2]
[405314014,1770981041367,-222.32,0.00017899,2]
[405314015,1770981041376,-637.19,0.00017899,2]
[405314016,1770981041386,-500.0,0.00017899,2]
[405314017,1770981041395,-500.0,0.00017899,2]
[405314018,1770981041405,-500.0,0.00017899,2]
[405314019,1770981041418,-500.0,0.00017899,2]
[405314020,1770981041427,-375.92509654,0.00017899,2]
[405314021,1770981041436,-500.0,0.00017899,2]
[405314022,1770981041445,-500.0,0.00017899,2]
[405314023,1770981041456,-463.4,0.00017899,2]
[405314024,1770981041465,-500.0,0.00017899,2]
[405314025,1770981041474,-500.0,0.00017899,2]
[405314026,1770981041486,-382.26,0.00017899,2]
[405314027,1770981041496,-500.0,0.00017899,2]
[405314028,1770981041506,-500.0,0.00017899,2]
[405314029,1770981041516,-500.0,0.00017899,2]
[405314030,1770981041526,-500.0,0.00017899,2]
[405314031,1770981041535,-377.58,0.00017899,2]
[405314032,1770981041546,-15794.452,0.000179,2]
[405314033,1770981041556,-1000.0,0.000179,2]
[405314034,1770981041566,-1742.5868,0.000179,2]
[405314035,1770981041576,-259.7041,0.000179,2]
[405314036,1770981041587,-4854.87299183,0.000179,2]
[405314037,1770981041597,-9712.88812026,0.000179,2]
[405314038,1770981041607,-395.74226213,0.000179,2]
[405314039,1770981041616,-200.0,0.000179,6]
[405314040,1770981041626,-5531.0,0.000179,5]
[405314041,1770981041639,-126122.77745,0.00017945,2]
[405314042,1770981041649,-4806.2081209,0.00017945,2]
[405314043,1770981041659,-14418.6243628,0.00017945,2]
[405314044,1770981041668,-378368.33235,0.00017945,2]
[405314045,1770981041678,-1737427.48308048,0.00018,2]
[405314046,1770981041687,-200.0,0.00018,2]
[405314047,1770981041697,-200.0,0.00018,2]
[405314048,1770981041707,-200.0,0.00018,2]
[405314049,1770981041716,-151.0,0.00018,2]
[405314050,1770981041725,-222.534696,0.00018,2]
[405314051,1770981041734,-151.0,0.00018,2]
[405314052,1770981041743,-151.0,0.00018,2]
[405314053,1770981041754,-200.0,0.00018004,2]
[405314054,1770981041764,-166.66,0.00018116,2]
[405314055,1770981041775,-200.0,0.0001818,2]
[405314056,1770981041786,-200.0,0.0001818,2]
[405314057,1770981041795,-200.0,0.0001818,2]
[405314058,1770981041804,-481.89542729,0.00018186,2]
[405314059,1770981041814,-294.611595,0.00018338,7]
[405314060,1770981041823,-200.0,0.00018362,2]
[405314061,1770981041831,-200.0,0.00018362,2]
[405314062,1770981041841,-200.0,0.00018362,2]
[405314063,1770981041851,-575.78,0.00018441,2]
[405314064,1770981041860,-200.0,0.00018545,2]
[405314065,1770981041870,-200.0,0.00018545,2]
[405314066,1770981041880,-711.93058663,0.00018598,2]
[405314067,1770981041889,-2184.19,0.00018602,2]
[405314068,1770981041900,-481.89542729,0.0001863,2]
[405314069,1770981041910,-1613.0,0.0001868,2]
[405314070,1770981041919,-166.66,0.00018694,2]
[405314071,1770981041928,-200.0,0.00018731,2]
[405314072,1770981041938,-200.0,0.00018731,2]
[405314073,1770981041947,-1000.0,0.00018971,2]
[405314074,1770981041956,-8119.88605192,0.00019,2]
[405314075,1770981041966,-300.11896325,0.00019,2]
[405314076,1770981041975,-350.0,0.00019,2]
[405314077,1770981041985,-481.89542729,0.00019073,2]
[405314078,1770981041995,-200.18551342,0.00019082,2]
[405314079,1770981042005,-151.0,0.00019178,2]
[405314080,1770981042014,-500.0,0.000192,2]
[405314081,1770981042225,-166.66,0.00019273,2]
[405314082,1770981042235,-209.81,0.00019412,2]
[405314083,1770981042245,-199.17,0.00019658,2]
[405314084,1770981042255,-13452.83,0.00019692,2]
[405314085,1770981042264,-166.66,0.00019852,2]
[405314086,1770981042274,-126122.77745,0.00019873,2]
[405314087,1770981042283,-131443.79355602,0.00019873,2]
[405314093,1770981043713,-852.35247342,0.00019873,2]
[405314094,1770981043724,-2490.89414579,0.00019873,2]
[405314095,1770981043740,-1226.99980761,0.00019873,2]
[405314096,1770981044563,-500.86392301,0.00019873,2]
[405314097,1770981044617,-703.66760462,0.00019873,2]
[405314098,1770981045865,-1500.0,0.00019873,2]
[405314182,1770982232045,-175.93,7.577e-05,2]
[405314183,1770982232055,-250.0,7.661e-05,2]
[405314184,1770982232067,-2.90006423,7.746e-05,2]
[405314197,1770982232373,-286.23993577,7.746e-05,2]
[405314200,1770982232382,-289.14,7.921e-05,2]
[405314202,1770982232391,-6.94724791,7.922e-05,2]
[405314203,1770982232402,-243.05275209,7.922e-05,2]
[405314204,1770982232411,-289.14,8.095e-05,2]
[405314205,1770982232420,-289.14,8.27e-05,2]
[405314206,1770982232430,-250.0,8.335e-05,2]
[405314207,1770982232439,-289.14,8.445e-05,2]
[405314208,1770982232448,-289.14,8.619e-05,2]
[405314209,1770982232457,-401.68149176,8.794e-05,2]
[405314210,1770982232466,-289.14,8.794e-05,2]
[405314211,1770982232475,-289.14,8.969e-05,2]
[405314212,1770982232486,-289.14,9.144e-05,2]
[405314213,1770982232495,-1151.0,9.184e-05,2]
[405314214,1770982232504,-300.0,9.184e-05,2]
[405314215,1770982232513,-5091.68343887,9.185e-05,2]
[405314216,1770982232524,-8299.02656113,9.185e-05,2]
[405314217,1770982232537,-150.0,9.317e-05,2]
[405314218,1770982232547,-289.14,9.318e-05,2]
[405314219,1770982232556,-9999.99,9.318e-05,2]
[405314220,1770982232566,-8114.86,9.318e-05,2]
[405314221,1770982232575,-150.99,9.318e-05,2]
[405314222,1770982232584,-289.14,9.493e-05,2]
[405314223,1770982232593,-289.14,9.668e-05,2]
[405314224,1770982232605,-16404.34,9.807e-05,2]
[405314225,1770982232615,-289.14,9.842e-05,2]
[405314226,1770982232624,-1852.42,9.843e-05,2]
[405314227,1770982232633,-401.68149174,9.986e-05,2]
[405314228,1770982232642,-250.0,0.00010012,2]
[405314229,1770982232651,-289.14,0.00010017,2]
[405314230,1770982232660,-166.66,0.00010036,2]
[405314231,1770982232670,-893.97,0.00010052,2]
[405314232,1770982232679,-289.14,0.00010192,2]
[405314233,1770982232688,-254.0,0.00010249,2]
[405314234,1770982232697,-289.14,0.00010367,2]
[405314235,1770982232707,-166.66,0.0001045,2]
[405314236,1770982232716,-289.14,0.00010541,2]
[405314237,1770982232729,-289.14,0.00010716,2]
[405314238,1770982232738,-166.66,0.00010864,2]
[405314239,1770982232747,-289.14,0.00010891,2]
[405314240,1770982232757,-289.14,0.00011065,2]
[405314241,1770982232766,-401.68149174,0.00011078,2]
[405314242,1770982232775,-172.20206283,0.00011178,2]
[405314243,1770982232784,-903.08174218,0.00011178,2]
[405314244,1770982232793,-206.40621636,0.0001123,2]
[405314245,1770982232805,-7105.83,0.00011233,2]
[405314246,1770982232814,-195062.99406954,0.0001124,2]
[405314247,1770982232825,-19124.97581632,0.0001124,2]
[405314249,1770982238092,-2088547.71096693,0.0001124,2]
[405314250,1770982238104,-915.68180285,0.0001124,2]
[405314251,1770982238116,-366.93457636,0.0001124,2]
[405314252,1770982238147,-11737.65924844,0.0001124,2]
[405314253,1770982238204,-796.55986639,0.0001124,2]
[405314254,1770982238217,-4932.1520001,0.0001124,2]
[405314255,1770982238228,-2824.62425539,0.0001124,2]
[405314256,1770982238243,-308428.38706687,0.0001124,2]
[405314257,1770982238255,-11132.66819799,0.0001124,2]
[405314258,1770982238266,-451.84088266,0.0001124,2]
[405314259,1770982238278,-1051.74850456,0.0001124,2]
[405314260,1770982238291,-720.01455073,0.0001124,2]
[405314261,1770982238316,-639.31888652,0.0001124,2]
[405314262,1770982238328,-1234.3700054,0.0001124,2]
[405314282,1770982240157,-1123.42602351,0.0001124,2]
[405314287,1770982240368,-2315.09651318,0.0001124,2]
[405314288,1770982240425,-972.15998328,0.0001124,2]
[405314289,1770982240438,-847621.67678298,0.0001124,2]
[405314290,1770982240449,-166.66,0.00011278,2]
[405314291,1770982240458,-13452.83,0.0001134,2]
[405314292,1770982240469,-479.5459,0.000115,2]
[405314293,1770982240479,-166.66,0.00011692,2]
[405314294,1770982240494,-1861.53018604,0.00011763,2]
[405314295,1770982240504,-2500.0,0.00011805,2]
[405314296,1770982240513,-151.0,0.00011898,2]
[405314297,1770982240523,-151.0,0.00011898,2]
[405314298,1770982240532,-151.0,0.00011898,2]
[405314299,1770982240542,-151.0,0.00011898,2]
[405314300,1770982240551,-151.0,0.00011898,2]
[405314301,1770982240561,-151.0,0.00011898,2]
[405314302,1770982240570,-151.0,0.00011898,2]
[405314303,1770982240579,-151.0,0.00011898,2]
[405314304,1770982240588,-151.0,0.00011898,2]
[405314305,1770982240598,-151.0,0.00011898,2]
[405314306,1770982240607,-151.0,0.00011898,2]
[405314307,1770982240616,-151.0,0.00011898,2]
[405314308,1770982240626,-151.0,0.00011898,2]
[405314309,1770982240636,-151.0,0.00011898,2]
[405314310,1770982240646,-151.0,0.00011898,2]
[405314311,1770982240655,-151.0,0.00011898,2]
[405314312,1770982240664,-151.0,0.00011898,2]
[405314313,1770982240674,-151.0,0.00011898,2]
[405314314,1770982240683,-151.0,0.00011898,2]
[405314315,1770982240692,-151.0,0.00011898,2]
[405314316,1770982240702,-677.08616284,0.00011905,2]
[405314317,1770982240711,-711.93058668,0.00011905,2]
[405314318,1770982240720,-504.53310157,0.00011905,2]
[405314319,1770982240729,-206.40621636,0.00011995,2]
[405314320,1770982240742,-10914.17,0.00012005,2]
[405314321,1770982240751,-42929.0,0.000122,2]
[405314322,1770982240760,-1180.49,0.00012248,2]
[405314323,1770982240770,-169.17,0.00012248,2]
[405314324,1770982240779,-4127.5626,0.00012249,2]
[405314325,1770982240788,-4882.1969,0.00012249,2]
[405314326,1770982240797,-200.0,0.00012338,2]
[405314327,1770982240808,-1742.5868,0.00012349,2]
[405314328,1770982240820,-259.7041,0.00012349,2]
[405314329,1770982240830,-10000.0,0.00012349,2]
[405314330,1770982240839,-164.44,0.000124,2]
[405314331,1770982240848,-209.72391114,0.00012402,2]
[405314332,1770982240858,-273.19517437,0.00012402,2]
[405314333,1770982240867,-500.0,0.00012402,2]
[405314334,1770982240876,-593.56494608,0.00012402,2]
[405314335,1770982240887,-500.0,0.00012402,2]
[405314336,1770982240896,-500.0,0.00012402,2]
[405314337,1770982240906,-153681.6207727,0.00012403,2]
[405314338,1770982240916,-308.27277135,0.000125,2]
[405314339,1770982240926,-752.3297287,0.00012592,2]
[405314340,1770982240936,-1000.0,0.00012682,2]
[405314341,1770982240945,-538.93435386,0.00012712,2]
[405314342,1770982240954,-5531.0,0.000128,3]
[405314343,1770982240963,-477.46010162,0.00012801,2]
[405314344,1770982240972,-49040.33555894,0.000129,2]
[405314345,1770982240981,-5620.89289465,0.00013,2]
[405314346,1770982240992,-958.1361216,0.00013,2]
[405314347,1770982241002,-12563.76949661,0.00013,15]
[405314348,1770982241011,-5360.46702265,0.0001305,2]
[405314349,1770982241020,-4315.24371304,0.000132,2]
[405314350,1770982241030,-450.0,0.00013232,7]
[405314351,1770982241040,-5531.0,0.000133,5]
[405314352,1770982241050,-209.81,0.00013393,2]
[405314353,1770982241059,-1500000.0,0.00013398,2]
[405314354,1770982241068,-32832.125,0.00013497,2]
[405314355,1770982241077,-1000.0,0.00013497,2]
[405314356,1770982241086,-1000.0,0.000135,2]
[405314357,1770982241096,-163.73,0.00013644,2]
[405314358,1770982241105,-500.0,0.00013673,2]
[405314359,1770982241114,-500.0,0.00013673,2]
[405314360,1770982241123,-501.11113591,0.00013673,2]
[405314361,1770982241132,-166.66792853,0.00013673,2]
[405314362,1770982241142,-500.0,0.00013673,2]
[405314363,1770982241151,-500.0,0.00013673,2]
[405314364,1770982241160,-500.0,0.00013673,2]
[405314365,1770982241169,-500.0,0.00013698,2]
[405314366,1770982241178,-500.0,0.00013698,2]
[405314367,1770982241188,-444.64,0.00013698,2]
[405314368,1770982241197,-500.0,0.00013698,2]
[405314369,1770982241207,-500.0,0.00013698,2]
[405314370,1770982241216,-500.0,0.00013698,2]
[405314371,1770982241226,-500.0,0.00013698,2]
[405314372,1770982241239,-274.38,0.00013698,2]
[405314373,1770982241248,-500.0,0.00013698,2]
[405314374,1770982241258,-500.0,0.00013698,2]
[405314375,1770982241268,-500.0,0.00013698,2]
[405314376,1770982241277,-500.0,0.00013698,2]
[405314377,1770982241287,-500.0,0.00013698,2]
[405314378,1770982241296,-445.1,0.00013698,2]
[405314379,1770982241306,-500.0,0.00013698,2]
[405314380,1770982241315,-500.0,0.00013698,2]
[405314381,1770982241324,-500.0,0.00013698,2]
[405314382,1770982241334,-500.0,0.00013698,2]
[405314383,1770982241343,-500.0,0.00013698,2]
[405314384,1770982241352,-182.62,0.00013698,2]
[405314385,1770982241361,-500.0,0.00013698,2]
[405314386,1770982241371,-500.0,0.00013698,2]
[405314387,1770982241380,-500.0,0.00013698,2]
[405314388,1770982241391,-500.0,0.00013698,2]
[405314389,1770982241401,-500.0,0.00013698,2]
[405314390,1770982241411,-500.0,0.00013698,2]
[405314391,1770982241420,-500.0,0.00013698,2]
[405314392,1770982241430,-578.42571045,0.00013698,2]
[405314393,1770982241439,-500.0,0.00013698,2]
[405314394,1770982241448,-500.0,0.00013698,2]
[405314395,1770982241456,-500.0,0.00013698,2]
[405314396,1770982241466,-573.39,0.00013698,2]
[405314397,1770982241475,-500.0,0.00013698,2]
[405314398,1770982241486,-558.9,0.00013698,2]
[405314399,1770982241496,-500.0,0.00013698,2]
[405314400,1770982241506,-191.66731724,0.00013698,2]
[405314401,1770982241515,-500.0,0.00013698,2]
[405314402,1770982241525,-500.0,0.00013698,2]
[405314403,1770982241534,-500.0,0.00013698,2]
[405314404,1770982241543,-500.0,0.00013698,2]
[405314405,1770982241552,-500.0,0.00013698,2]
[405314406,1770982241562,-500.0,0.00013698,2]
[405314407,1770982241571,-500.0,0.00013698,2]
[405314408,1770982241580,-500.0,0.00013698,2]
[405314409,1770982241588,-500.0,0.00013698,2]
[405314410,1770982241597,-500.0,0.00013698,2]
[405314411,1770982241607,-316.37,0.00013698,2]
[405314412,1770982241616,-500.0,0.00013698,2]
[405314413,1770982241625,-500.0,0.00013698,2]
[405314414,1770982241634,-500.0,0.00013698,2]
[405314415,1770982241644,-500.0,0.00013698,2]
[405314416,1770982241653,-500.0,0.00013698,2]
[405314417,1770982241662,-500.0,0.00013698,2]
[405314418,1770982241671,-500.0,0.00013698,2]
[405314419,1770982241680,-500.0,0.00013698,2]
[405314420,1770982241689,-286.74509654,0.00013698,2]
[405314421,1770982241698,-500.0,0.00013698,2]
[405314422,1770982241707,-500.0,0.00013698,2]
[405314423,1770982241716,-230.54,0.00013698,2]
[405314424,1770982241725,-500.0,0.00013698,2]
[405314425,1770982241736,-500.0,0.00013698,2]
[405314426,1770982241745,-500.0,0.00013698,2]
[405314427,1770982241754,-500.0,0.00013698,2]
[405314428,1770982241764,-500.0,0.00013698,2]
[405314429,1770982241773,-500.0,0.00013698,2]
[405314430,1770982241782,-500.0,0.00013698,2]
[405314431,1770982241791,-559.38615752,0.00013698,2]
[405314432,1770982241800,-500.0,0.00013698,2]
[405314433,1770982241812,-500.0,0.00013698,2]
[405314434,1770982241821,-500.0,0.00013698,2]
[405314435,1770982241830,-500.0,0.00013698,2]
[405314436,1770982241840,-500.0,0.00013698,2]
[405314437,1770982241848,-500.0,0.00013698,2]
[405314438,1770982241858,-500.0,0.00013698,2]
[405314439,1770982241867,-500.0,0.00013698,2]
[405314440,1770982241877,-500.0,0.00013698,2]
[405314441,1770982241887,-500.0,0.00013698,2]
[405314442,1770982241895,-500.0,0.00013698,2]
[405314443,1770982241905,-434.50997361,0.00013698,2]
[405314444,1770982241915,-200.0,0.00013699,2]
[405314445,1770982241925,-2181.0,0.00013699,2]
[405314446,1770982241934,-1000.0,0.00013953,2]
[405314447,1770982241943,-1500.0,0.00014,2]
[405314448,1770982241954,-151.72862617,0.00014,2]
[405314449,1770982241963,-160.0,0.00014213,2]
[405314450,1770982241973,-1000.0,0.00014221,2]
[405314451,1770982241982,-1000.0,0.00014268,2]
[405314452,1770982241993,-2181.0,0.00014384,2]
[405314453,1770982242003,-10344.72501178,0.0001439,2]
[405314454,1770982242012,-172.20206281,0.00014539,2]
[405314455,1770982242022,-903.08174218,0.00014539,2]
[405314456,1770982242031,-15828.57,0.00014701,2]
[405314457,1770982242041,-884.25817303,0.00014768,2]
[405314458,1770982242051,-2054.57446277,0.00015,2]
[405314459,1770982242063,-7998.56048941,0.00015,2]
[405314460,1770982242072,-418.64808275,0.00015,2]
[405314461,1770982242082,-504.53310156,0.00015009,2]
[405314462,1770982242091,-2181.0,0.00015068,2]
[405314463,1770982242100,-1517.64,0.000153,2]
[405314464,1770982242109,-509.37205918,0.000154,2]
[405314465,1770982242119,-45688.9750155,0.0001561,2]
[405314466,1770982242128,-2181.0,0.00015753,2]
[405314467,1770982242138,-2244.65684869,0.00015807,2]
[405314468,1770982242147,-1000.0,0.00015853,2]
[405314469,1770982242157,-15428.07,0.00015934,2]
[405314470,1770982242166,-1067.06589275,0.00015942,2]
[405314471,1770982242175,-9999.99,0.00016116,2]
[405314472,1770982242185,-500.0,0.00016173,2]
[405314473,1770982242194,-500.0,0.00016173,2]
[405314474,1770982242205,-500.0,0.00016173,2]
[405314475,1770982242215,-500.2976467,0.00016173,2]
[405314476,1770982242224,-500.0,0.00016173,2]
[405314477,1770982242234,-160.37994263,0.00016173,2]
[405314478,1770982242245,-277.78495624,0.00016173,2]
[405314479,1770982242254,-500.0,0.00016173,2]
[405314480,1770982242263,-502.22718587,0.00016173,2]
[405314481,1770982242273,-500.0,0.00016173,2]
[405314482,1770982242283,-161.5226786,0.00016173,2]
[405314483,1770982242292,-500.0,0.00016173,2]
[405314484,1770982242302,-500.0,0.00016173,2]
[405314485,1770982242311,-500.0,0.00016173,2]
[405314486,1770982242321,-377.55295707,0.00016173,2]
[405314487,1770982242330,-500.0,0.00016173,2]
[405314488,1770982242339,-500.0,0.00016173,2]
[405314489,1770982242349,-182409.97269632,0.000162,5]
[405314490,1770982242359,-158.58031906,0.00016293,2]
[405314491,1770982242369,-200.0,0.0001634,2]
[405314492,1770982242378,-2181.0,0.00016438,2]
[405314493,1770982242387,-711.93058663,0.00016471,2]
[405314494,1770982242401,-500.0,0.00016521,2]
[405314495,1770982242411,-361.33092873,0.000166,2]
[405314496,1770982242420,-460.18108091,0.00016721,2]
[405314497,1770982242429,-1000.0,0.00016721,2]
[405314498,1770982242438,-1000.0,0.00016721,2]
[405314499,1770982242448,-1000.0,0.00016721,2]
[405314500,1770982242458,-895.51801597,0.00016721,2]
[405314501,1770982242467,-1000.0,0.00016721,2]
[405314502,1770982242476,-10914.17,0.00016807,2]
[405314503,1770982242487,-370.537853,0.00016965,7]
[405314504,1770982242496,-206.40621636,0.0001699,2]
[405314505,1770982242505,-990345.30744029,0.00017,2]
[405314506,1770982242514,-151.0,0.00017,2]
[405314507,1770982242523,-222.534696,0.00017,2]
[405314508,1770982242533,-229.835666,0.00017,2]
[405314509,1770982242541,-151.0,0.00017,2]